Cogmind - Beta 16.1 @@@ ROGUE MODE // 2026.01.20 @ 21:45:22 Player: Plexion Result: Destroyed by AG-16534 with Assembled Focal Cannon Performance ------------- Evolutions (3) 1500 Regions Visited (9) 1800 Robots Destroyed (79) 395 Value Destroyed (2718) 2718 Prototype IDs (22) 440 Alien Tech Used (0) 0 Bonus (2932) 2932 TOTAL SCORE: 9785 Bonus ------- High Alert Combat Kills 100 Follower Combat Kills 1032 Entered Garrisons 200 Met Imprinter 300 Destroyed Z-Imprinter 1000 Acquired ECA 300 Cogmind --------- Core Integrity 0/700 Matter 259/300 Energy 100/100 System Corruption 0% Temperature Cool (12) Movement Core (750) Ox14 Location -6/Deep Caves Parts ------- > --- POWER (1) -------- (None) > --- PROPULSION (4) --- (None) > --- UTILITY (2) ------ High-capacity Storage Unit > --- WEAPON (6) ------- Great Axe > --- INVENTORY (20) --- Light Nuclear Core Wheel Experimental Heat Sink Coolant Injector Medium Matter Pod (100) Medium Matter Pod (100) Improved Signal Interpreter Seismic Detector Encrypted Comm Array Hacking Suite Precision Beam Rifle Storm Laser Great Maul Peak State ------------ > --- POWER ------------ Nuclear Core > --- PROPULSION ------- Light Treads Armored Treads Armored Treads Improved Medium Treads > --- UTILITY ---------- High-capacity Storage Unit Zionite Weapon Casing > --- WEAPON ----------- 1B-0RG's Assimilator Great Axe > --- INVENTORY -------- Light Nuclear Core Light Treads Wheel Experimental Heat Sink Coolant Injector Medium Matter Pod Medium Matter Pod Improved Signal Interpreter Seismic Detector Encrypted Comm Array Light Armor Plating Hacking Suite Precision Beam Rifle Storm Laser Great Maul [Rating: 97] Favorites ----------- Power Nuclear Core Engine Light Ion Engine Power Core Nuclear Core Propulsion Improved Treads Treads Improved Treads Wheel Wheel Utility High-capacity Storage Unit Device Seismic Detector Storage High-capacity Storage Unit Processor Improved Targeting Computer Protection Reflective Plating Weapon Great Axe Energy Gun EM Pulse Gun Energy Cannon Powered Cannon Ballistic Gun Assault Rifle Ballistic Cannon Battle Cannon Launcher Missile Launcher Special Weapon Mining Laser Impact Weapon Hammer Slashing Weapon Great Axe Special Melee Weapon 1B-0RG's Assimilator Build | -11 -10 -10 -8 -8 -8 -7 -7 -6 -6 ------- Run | Yrd Mat Sub Mat Gar Mat Fac Low Zio Dee Slots Evolved 6 | . . . 4 . . 2 . . . Power . | . . . . . . . . . . Propulsion 2 | . . . 1 . . 1 . . . Utility . | . . . . . . . . . . Weapon 4 | . . . 3 . . 1 . . . Parts Attached 63 | 8 6 8 1 5 7 12 7 3 6 Power 9 | 1 . 2 . 1 2 2 1 . . Engine 6 | 1 . 2 . 1 1 1 . . . Core 3 | . . . . . 1 1 1 . . Reactor . | . . . . . . . . . . Propulsion 18 | 2 2 2 . 1 2 5 2 . 2 Treads 15 | 2 2 2 . 1 2 3 1 . 2 Leg . | . . . . . . . . . . Wheel 3 | . . . . . . 2 1 . . Hover . | . . . . . . . . . . Flight . | . . . . . . . . . . Utility 17 | 2 2 2 1 1 . 2 3 1 3 Device 4 | 1 . 1 . . . . 1 . 1 Storage 5 | 1 1 . 1 . . . 2 . . Processor 2 | . . 1 . . . 1 . . . Hackware . | . . . . . . . . . . Protection 6 | . 1 . . 1 . 1 . 1 2 Artifact . | . . . . . . . . . . Weapon 19 | 3 2 2 . 2 3 3 1 2 1 Energy Gun 6 | 2 . . . . 2 1 . . 1 Energy Cannon 2 | . . 1 . 1 . . . . . Ballistic Gun 3 | 1 1 . . . 1 . . . . Ballistic Cannon 1 | . . 1 . . . . . . . Launcher 3 | . . . . . . . 1 2 . Special Weapon 1 | . 1 . . . . . . . . Impact Weapon 1 | . . . . 1 . . . . . Slashing Weapon 1 | . . . . . . 1 . . . Piercing Weapon . | . . . . . . . . . . Special Melee Weapon 1 | . . . . . . 1 . . . Unidentified Prototypes 9 | . . . . . 3 2 . 1 3 Parts Lost 19 | . . 3 . . 3 . 1 . 12 Power 2 | . . 1 . . . . . . 1 Propulsion 10 | . . 2 . . . . 1 . 7 Utility 2 | . . . . . . . . . 2 Weapon 5 | . . . . . 3 . . . 2 Highest Loss Streak 9 | . . 2 . . 2 . 1 . 9 To Critical Strikes 1 | . . 1 . . . . . . . Average Backups 15 | 2 10 13 13 18 19 17 17 15 15 Power 1 | . 1 . . . 1 2 1 1 1 Propulsion 5 | . 5 6 6 7 6 6 4 4 3 Utility 5 | . 2 . 1 7 9 5 6 7 8 Weapon 3 | . 1 4 5 3 2 3 3 2 2 Tool/Special . | . . . . . . . . . . Unused Backups 17 | . . . 1 3 6 1 1 . 5 Power . | . . . . . . . . . . Propulsion 4 | . . . . 2 1 . 1 . . Utility 10 | . . . 1 . 5 1 . . 3 Weapon 2 | . . . . 1 . . . . 1 Tool/Special 1 | . . . . . . . . . 1 Average Slot Usage (%) 75 | . 99 93 66 82 82 68 64 62 62 Engine 7 | . 14 14 16 16 10 4 2 . . Core 3 | . . . . . 2 2 4 7 6 Treads 20 | . 28 27 25 25 25 15 15 15 18 Wheel 6 | . . . . . . 14 14 15 6 Device 5 | . 7 12 8 . 2 6 6 . 3 Storage 9 | . 14 13 8 8 8 7 7 8 7 Protection 3 | . 6 . . 7 5 . . 6 2 Energy Gun 2 | . 10 4 . . 5 3 . . . Energy Cannon 2 | . . 3 8 8 5 . . . . Ballistic Gun 2 | . 17 4 . . 3 . . . . Ballistic Cannon 2 | . . 7 . 7 4 . . . . Impact Weapon 1 | . . . . 7 6 . . . . Slashing Weapon 3 | . . . . . . 3 6 7 6 Special Melee Weapon 2 | . . . . . . 6 3 1 6 Peak Build Rating 97 | 7 10 25 27 33 33 89 88 86 97 Average Rating 45 | 5 9 14 26 32 28 81 57 36 89 On Entrance 32 | . 7 10 25 27 33 22 89 23 86 Avg Prop Armor Cover (%) 19 | . . . . . . 17 22 17 13 Naked Turns . | . . . . . . . . . . Heaviest Build 119 | 13 30 38 58 70 70 119 112 113 115 Greatest Support 90 | 40 46 46 66 66 66 86 80 26 90 Greatest Overweight (x) 11 | . . 1 . 1 1 4 10 4 11 Average Overweight (x) 1 | . . . . . . 3 2 2 6 Largest Inventory Capacity 20 | 8 15 15 20 20 20 20 20 20 20 Average Capacity 18 | 7 14 15 16 20 20 20 20 20 20 Most Carried 20 | 4 15 15 16 20 20 20 20 20 20 Average Carried 17 | 2 10 14 14 18 19 17 19 19 18 Final Capacity 20 | 8 15 15 20 20 20 20 20 20 20 Final Carried 20 | 4 14 14 16 19 14 19 20 19 16 Class Distribution -------------------- 80% | Mutant 16% | Tank Dominant Class ---------------- Mutant | -10/Materials Mutant | -10/Subcaves Mutant | -8/Materials Tank | -8/Garrison Tank | -8/Materials Mutant | -7/Factory Mutant | -7/Lower Caves Mutant | -6/Zion Mutant | -6/Deep Caves Resources | -11 -10 -10 -8 -8 -8 -7 -7 -6 -6 ----------- Run | Yrd Mat Sub Mat Gar Mat Fac Low Zio Dee Matter Collected 4158 | 225 373 240 . 90 144 895 1257 163 771 Remotely 119 | . . . . . . . 119 . . Salvage Created 3020 | 10 535 305 . 607 931 424 75 . 133 Parts 166 | 4 48 26 . 32 29 23 1 . 3 Haulers Intercepted 3 | . 2 . . . 1 . . . . Recyclers Shooed 5 | 1 . . . . . 4 . . . Parts Field Recycled . | . . . . . . . . . . Retrieved Matter . | . . . . . . . . . . Parts Self-Destructed 31 | . . 9 . . . . 21 1 . Prevented . | . . . . . . . . . . Parts Restored . | . . . . . . . . . . Kills | -11 -10 -10 -8 -8 -8 -7 -7 -6 -6 ------- Run | Yrd Mat Sub Mat Gar Mat Fac Low Zio Dee Combat Hostiles Destroyed 52 | . 13 8 . 12 12 1 2 . 4 Melee 2 | . . . . . . 1 1 . . Guns 16 | . 11 2 . . 3 . . . . Cannons 23 | . . 6 . 11 6 . . . . AOE 8 | . 2 . . . 1 . 1 . 4 Classes Destroyed 13 | 1 5 1 . 3 2 . . . 1 Worker 6 | . 2 . . . 2 2 . . . Builder 2 | . . . . . 1 1 . . . Tunneler 6 | 1 4 . . . . 1 . . . Hauler 3 | . 2 . . . 1 . . . . Recycler 6 | . . . . . 2 4 . . . Operator 4 | . 2 . . . 2 . . . . Swarmer 10 | . 9 . . . . . 1 . . Grunt 18 | . 4 . . 4 8 1 1 . . Brawler 5 | . . . . 4 1 . . . . Duelist 2 | . . . . 1 1 . . . . Sentry 5 | . . . . 3 2 . . . . Subdweller 8 | . . 8 . . . . . . . Z-Light 3 | . . . . . . . . . 3 Decomposer 2 | . . . . . . . 2 . . Best Kill Streak 7 | 1 5 2 . 3 7 2 1 . 2 Combat Bots Only 3 | . 3 2 . 3 3 1 1 . 2 Max Kills in Single Turn 2 | 1 1 1 . 1 1 1 1 . 2 Gunslinging . | . . . . . . . . . . Exploded 2 | . 1 . . . 1 . 1 . 2 Melee 1 | . . . . . . 1 1 . . Uniques/NPCs Destroyed 1 | . . . . . . . . . 1 Z-Imprinter (-6/Deep Caves) Combat | -11 -10 -10 -8 -8 -8 -7 -7 -6 -6 -------- Run | Yrd Mat Sub Mat Gar Mat Fac Low Zio Dee Hostile Shots Fired 309 | . 67 30 . 24 50 48 21 . 69 Missed 68 | . 17 4 . 4 18 9 4 . 12 Hits 241 | . 50 26 . 20 32 39 17 . 57 Melee 5 | . . . . 3 2 . . . . Projectile 236 | . 50 26 . 17 30 39 17 . 57 Critical Strikes 9 | . 1 3 . . 2 2 1 . . Damage Taken 5400 | . 434 641 . 335 513 817 379 . 2281 Core 1003 | . 61 166 . 41 12 104 109 . 510 Absorbed by Shields . | . . . . . . . . . . Redirected to Shielding 159 | . . . . . . . . . 159 Ignored by Resistances 205 | . . . . 24 52 129 . . . Regen/Repaired (Parts) 351 | . . . . . . 145 119 . 87 Core Remaining (%) 66 | 100 . 9 . . 90 . . . . Volleys Fired 202 | 3 59 40 . 23 49 19 3 . 6 Largest 3 | 1 2 2 . 1 3 1 1 . 1 Hottest 164 | 20 100 100 . 40 164 61 36 . 36 Shots Fired 282 | 3 103 51 . 23 72 21 3 . 6 Gun 173 | 3 100 17 . . 32 21 . . . Cannon 87 | . . 24 . 23 40 . . . . Launcher 9 | . . . . . . . 3 . 6 Special 13 | . 3 10 . . . . . . . Kinetic 101 | 3 68 10 . . 20 . . . . Thermal 123 | . 3 29 . 23 47 21 . . . Explosive 9 | . . . . . . . 3 . 6 Electromagnetic 49 | . 32 12 . . 5 . . . . Robot Hit Streak 18 | 2 9 18 . 12 7 17 1 . 2 Robot Miss Streak 5 | 1 4 3 . 1 5 1 1 . . Penetration Max . | . . . . . . . . . . Secondary Targets 4 | . 3 . . . 1 . . . . Max Gunslinging Chain 1 | . 1 . . . 1 . . . . Shots Hit Robots 189 | 2 56 29 . 18 48 23 5 . 8 Core Hits 102 | 2 29 11 . 11 21 10 3 . 15 Critical Kills 3 | . . . . 1 2 . . . . Critical Parts Destroyed 2 | . 1 . . . 1 . . . . Critical Strikes 9 | . 2 . . 1 3 2 1 . . Burn 2 | . . . . . . 2 . . . Meltdown 3 | . . . . 1 2 . . . . Destroy 1 | . 1 . . . . . . . . Corrupt 1 | . 1 . . . . . . . . Smash 1 | . . . . . 1 . . . . Sever 1 | . . . . . . . 1 . . Melee Attacks 56 | . . . . 6 6 15 9 9 11 Impact 12 | . . . . 6 6 . . . . Slashing 44 | . . . . . . 15 9 9 11 Piercing . | . . . . . . . . . . Sneak Attacks 8 | . . . . . 2 4 2 . . Combat Hostiles 1 | . . . . . . 1 . . . Follow-up Attacks . | . . . . . . . . . . Damage Inflicted 6184 | 21 799 790 . 963 1762 640 363 . 846 Guns 1553 | 20 686 164 . . 375 308 . . . Cannons 2693 | . . 626 . 963 1104 . . . . Explosions 982 | . 105 . . . 187 . 138 . 552 Melee 935 | . . . . . 92 324 225 . 294 Ramming 21 | 1 8 . . . 4 8 . . . Kinetic 853 | 20 454 148 . . 231 . . . . Thermal 3306 | . 105 545 . 963 1385 308 . . . Explosive 690 | . . . . . . . 138 . 552 Electromagnetic 379 | . 232 97 . . 50 . . . . Impact 92 | . . . . . 92 . . . . Slashing 843 | . . . . . . 324 225 . 294 Piercing . | . . . . . . . . . . Highest Corruption 8 | . . . . . . 8 8 8 . Average Corruption 7 | . . . . . . 7 8 3 . Corruption Purged . | . . . . . . . . . . Corruption Blocked . | . . . . . . . . . . Effects 110 | . . . . . . 45 63 2 . Message Errors 23 | . . . . . . 5 18 . . Matter Fused 29 | . . . . . . 16 13 . . Heat Flow Errors 21 | . . . . . . 6 14 1 . Energy Discharges 9 | . . . . . . 5 3 1 . Parts Fused 3 | . . . . . . . 3 . . Data Loss (minor) 18 | . . . . . . 7 11 . . Data Loss (major) 3 | . . . . . . 2 1 . . Misfires 2 | . . . . . . 2 . . . Alerts 2 | . . . . . . 2 . . . Overload Shots . | . . . . . . . . . . Overflow Damage 306 | . 26 . . . 124 90 59 . 7 Projectiles 69 | . . . . . 69 . . . . Explosions 36 | . 26 . . . 3 . . . 7 Melee 201 | . . . . . 52 90 59 . . Knockbacks 3 | . . 1 . . 2 . . . . Impact 1 | . . . . . 1 . . . . Kinetic 2 | . . 1 . . 1 . . . . Secondary . | . . . . . . . . . . Self-Inflicted Damage 86 | . 18 . . . 24 . 44 . . Shots 3 | . 1 . . . 1 . 1 . . Rammed 5 | 1 2 . . . . 2 . . . Targets Rammed 7 | 1 3 . . . 1 2 . . . Kicked . | . . . . . . . . . . Crushed 2 | . 1 . . . 1 . . . . Highest Temperature 335 | . 81 219 . 38 335 263 305 224 2 Average Temperature 72 | . 20 88 . 18 96 58 112 124 2 Received Heat Transfer 1716 | . 54 379 . 117 270 138 353 . 405 Siege Activations . | . . . . . . . . . . Martial Activations . | . . . . . . . . . . Shielding Activations . | . . . . . . . . . . Robots Disrupted 1 | . 1 . . . . . . . . Combat Hostiles 1 | . 1 . . . . . . . . Robots Corrupted 2 | . . . . . 2 . . . . Combat Hostiles . | . . . . . . . . . . Parts Fried 7 | . 1 1 . . 5 . . . . Impact Corruptions 4 | . . . . . 4 . . . . Robots Melted 3 | . . . . 1 2 . . . . Combat Hostiles 3 | . . . . 1 2 . . . . Parts Melted 9 | . . . . 3 5 1 . . . Heat Transferred 1645 | . 150 . . . 681 814 . . . Parts Sabotaged . | . . . . . . . . . . Parts Stolen . | . . . . . . . . . . Parts Stripped . | . . . . . . . . . . Power Chain Reactions 4 | . 2 . . . 2 . . . . Alert | -11 -10 -10 -8 -8 -8 -7 -7 -6 -6 ------- Run | Yrd Mat Sub Mat Gar Mat Fac Low Zio Dee Maximum Alert Level 4 | . . . . 4 2 . . . . Low Security (%) 54 | 100 100 . 100 6 . 100 . . . Level 1 23 | . . . . 34 86 . . . . Level 2 11 | . . . . 28 13 . . . . Level 3 9 | . . . . 28 . . . . . Level 4 . | . . . . 2 . . . . . Level 5 . | . . . . . . . . . . High Security . | . . . . . . . . . . Max Security . | . . . . . . . . . . Peak Influence 1130 | 5 137 . 10 1130 550 169 . . . Initial 550 | . . . . 2 550 142 . . . Average 256 | . 48 . . 540 321 83 . . . Influence Increases 2797 | 5 382 . 14 1168 411 583 234 . . Destroy 0b10 Robot/C 1220 | . 260 . . 260 240 280 180 . . Destroy 0b10 Robot/NC 135 | 5 50 . . . 40 40 . . . Destroy Leader 216 | . 44 . . 10 52 100 10 . . Allied During Kill 113 | . 2 . . 2 . 65 44 . . Successful Hack 18 | . 4 . 14 . . . . . . Disable Machine 105 | . 15 . . . 45 45 . . . Anti-Garrison Action 850 | . . . . 850 . . . . . Destroy Structure 50 | . 7 . . 16 19 8 . . . Lose Combat Pursuer 90 | . . . . 30 15 45 . . . Influence Decreases 2797 | 5 322 60 10 42 1228 731 378 21 . Entered New Map 865 | . . 29 . 2 580 171 62 21 . Time Decay 1472 | 5 302 31 10 . 318 500 306 . . Lost Part 40 | . . . . . 30 . 10 . . Lost Ally 120 | . 20 . . 40 . 60 . . . Purge Threat 300 | . . . . . 300 . . . . Squads Dispatched 12 | . 1 . . . 3 8 . . . Investigation 1 | . . . . . . 1 . . . Extermination 2 | . . . . . . 2 . . . Reinforcement 7 | . 1 . . . 1 5 . . . Assault . | . . . . . . . . . . Garrison 2 | . . . . . 2 . . . . Intercept . | . . . . . . . . . . Searches Triggered . | . . . . . . . . . . Construction Impeded . | . . . . . . . . . . Haulers Reinforced 1 | . . . . . . 1 . . . Active Scanning Responses . | . . . . . . . . . . Cargo Convoy Interrupts 1 | . . . . . . 1 . . . Stealth | -11 -10 -10 -8 -8 -8 -7 -7 -6 -6 --------- Run | Yrd Mat Sub Mat Gar Mat Fac Low Zio Dee Distress Signals 5 | . . . . . 2 3 . . . Communications Jammed . | . . . . . . . . . . Distress Signals . | . . . . . . . . . . Times Spotted 118 | . 22 9 2 15 17 20 12 . 21 Peak Tracking Total 7 | . 6 2 1 3 4 4 7 . 5 Tactical Retreats 6 | . . . . 2 1 3 . . . Traps | -11 -10 -10 -8 -8 -8 -7 -7 -6 -6 ------- Run | Yrd Mat Sub Mat Gar Mat Fac Low Zio Dee Traps Triggered 6 | . . . . 4 . 2 . . . Indirectly . | . . . . . . . . . . Trap Hack Attempts . | . . . . . . . . . . Triggered . | . . . . . . . . . . Disarmed . | . . . . . . . . . . Reprogrammed . | . . . . . . . . . . Reused 1 | . . 1 . . . . . . . Traps Extracted . | . . . . . . . . . . Installed 1 | . . 1 . . . . . . . Triggered . | . . . . . . . . . . Most Traps Carried 1 | . . 1 . . . . . . . Machines | -11 -10 -10 -8 -8 -8 -7 -7 -6 -6 ---------- Run | Yrd Mat Sub Mat Gar Mat Fac Low Zio Dee Machines Disabled 18 | . 1 1 . 3 3 3 2 3 2 Max in Single Turn 1 | . 1 1 . 1 1 1 1 1 . Garrison Relay 3 | . . . . 3 . . . . . Machines Repaired . | . . . . . . . . . . Machines Dismantled . | . . . . . . . . . . Machines Sabotaged . | . . . . . . . . . . Overloaded Fab Kills . | . . . . . . . . . . Hacking | -11 -10 -10 -8 -8 -8 -7 -7 -6 -6 --------- Run | Yrd Mat Sub Mat Gar Mat Fac Low Zio Dee Machines Accessed 12 | . 1 2 3 . 3 2 1 . . Terminals 7 | . 1 . 2 . 2 1 1 . . Fabricators 1 | . . . . . . 1 . . . Repair Stations . | . . . . . . . . . . Recycling Units . | . . . . . . . . . . Scanalyzers . | . . . . . . . . . . Garrison Access 2 | . . . 1 . 1 . . . . Total Hacks 31 | . 2 6 10 . 6 3 4 . . Successful 20 | . 1 6 5 . 3 1 4 . . Failed 11 | . 1 . 5 . 3 2 . . . Catastrophic 1 | . . . . . . 1 . . . Database Lockouts . | . . . . . . . . . . Manual 14 | . 2 . 7 . 3 2 . . . Terminals 20 | . 2 . 8 . 4 2 4 . . Fabricators 1 | . . . . . . 1 . . . Repair Stations . | . . . . . . . . . . Recycling Units . | . . . . . . . . . . Scanalyzers . | . . . . . . . . . . Garrison Access 4 | . . . 2 . 2 . . . . Terminal Hacks 16 | . . 6 2 . 3 1 4 . . Record 9 | . . 5 . . . . 4 . . Alert Level 1 | . . . . . 1 . . . . Unreport Threat 2 | . . . . . 2 . . . . Locate Traps 1 | . . . 1 . . . . . . Recall Reinforcements 1 | . . . . . . 1 . . . Hauler Manifests 1 | . . . 1 . . . . . . Proto ID Catalog 1 | . . 1 . . . . . . . Fabricator Hacks . | . . . . . . . . . . Repair Station Hacks . | . . . . . . . . . . Recycling Unit Hacks . | . . . . . . . . . . Scanalyzer . | . . . . . . . . . . Garrison Access Hacks 1 | . . . 1 . . . . . . Unlock Access 1 | . . . 1 . . . . . . Unauthorized Hacks 3 | . 1 . 2 . . . . . . Terminals 3 | . 1 . 2 . . . . . . Skim 3 | . 1 . 2 . . . . . . Fabricators . | . . . . . . . . . . Repair Stations . | . . . . . . . . . . Recycling Units . | . . . . . . . . . . Scanalyzers . | . . . . . . . . . . Garrison Access . | . . . . . . . . . . Data Cores Recovered 2 | . 1 . . . 1 . . . . Used 1 | . . . . . 1 . . . . Hacking Detections 8 | . 1 . 2 . 2 2 1 . . Full Trace Events 1 | . . . . . . . 1 . . Feedback Events . | . . . . . . . . . . Feedback Blocked . | . . . . . . . . . . Robot Schematics Acquired 4 | . . . . . . . . 4 . Robots Built . | . . . . . . . . . . Authchips . | . . . . . . . . . . Time . | . . . . . . . . . . Total Robot Build Rating . | . . . . . . . . . . Part Schematics Acquired 15 | . . . . . . . . 15 . Parts Built . | . . . . . . . . . . Authchips . | . . . . . . . . . . Time . | . . . . . . . . . . Total Part Build Rating . | . . . . . . . . . . Part Studies Acquired . | . . . . . . . . . . Parts Repaired . | . . . . . . . . . . Time . | . . . . . . . . . . Parts Recycled . | . . . . . . . . . . Recycled Matter . | . . . . . . . . . . Retrieved Matter . | . . . . . . . . . . Retrieved Components . | . . . . . . . . . . Parts Scanalyzed . | . . . . . . . . . . Part Schematics Acquired . | . . . . . . . . . . Parts Damaged . | . . . . . . . . . . Bothacking | -11 -10 -10 -8 -8 -8 -7 -7 -6 -6 ------------ Run | Yrd Mat Sub Mat Gar Mat Fac Low Zio Dee Used RIF Installer . | . . . . . . . . . . Robots Hacked . | . . . . . . . . . . Non-combat . | . . . . . . . . . . Combat . | . . . . . . . . . . Robot Hacks Applied . | . . . . . . . . . . Relay Couplers Released 12 | . . . . 10 . 2 . . . Machine Destruction 12 | . . . . 10 . 2 . . . Fabnet Peak Effective % . | . . . . . . . . . . Robots Rewired 3 | . 1 . . 2 . . . . . Allies Hacked . | . . . . . . . . . . Hacks Repelled . | . . . . . . . . . . Allies | -11 -10 -10 -8 -8 -8 -7 -7 -6 -6 -------- Run | Yrd Mat Sub Mat Gar Mat Fac Low Zio Dee Total Allies 3 | . 1 . . 2 . . . . . Largest Group 2 | . 1 . . 2 . . . . . Highest-Rated Group 25 | . 8 . . 25 . . . . . Highest-Rated Ally 15 | . 8 . . 15 . . . . . Initial Warlord ECA Mod 5 | . . . . . 5 4 4 3 3 Total Orders 22 | . . . . . . 4 . 10 8 STAY 11 | . . . . . . 2 . 4 5 ROAM 1 | . . . . . . . . 1 . FOLLOW 10 | . . . . . . 2 . 5 3 Ally Attacks 266 | . 6 . . 9 . 71 35 . 145 Total Damage 4517 | . 33 . . 166 . 1688 622 . 2008 Kills 40 | . . . . 1 . 14 7 . 18 Allies Corrupted . | . . . . . . . . . . Allies Melted . | . . . . . . . . . . Borg Created 14 | . . . . . . 6 6 . 2 Largest Collective 6 | . . . . . . 4 6 . 4 Intel | -11 -10 -10 -8 -8 -8 -7 -7 -6 -6 ------- Run | Yrd Mat Sub Mat Gar Mat Fac Low Zio Dee Active Infowar (turns) 5815 | 22 449 1894 193 50 226 1284 1697 . . Seismic 5815 | 22 449 1894 193 50 226 1284 1697 . . Robot Analysis Total . | . . . . . . . . . . Derelict Logs Recovered 5 | . . 2 . . . . 2 1 . Drone Launches . | . . . . . . . . . . Drone Recoveries . | . . . . . . . . . . Exploration | -11 -10 -10 -8 -8 -8 -7 -7 -6 -6 ------------- Run | Yrd Mat Sub Mat Gar Mat Fac Low Zio Dee Turns Passed 12094 | 107 840 2069 193 1585 718 1425 2044 1416 1697 Spaces Moved 6486 | 54 385 1065 116 750 280 816 1512 941 567 Core 5 | 5 . . . . . . . . . Treads 2778 | 49 385 1065 116 750 280 36 3 . 94 Legs . | . . . . . . . . . . Wheels 3703 | . . . . . . 780 1509 941 473 Hover . | . . . . . . . . . . Flight . | . . . . . . . . . . Fastest Speed 50 | 50 160 160 160 160 160 105 105 120 150 Average Speed 154 | 149 160 160 160 196 200 144 126 125 198 Slowest Speed 330 | 160 160 240 160 240 240 330 245 150 246 Overloaded Moves . | . . . . . . . . . . Propulsion Burnouts . | . . . . . . . . . . Robots Hopped . | . . . . . . . . . . Potential Cave-ins . | . . . . . . . . . . Cave-ins Triggered . | . . . . . . . . . . Exploration Rate (%) 52 | 4 67 67 16 70 32 22 92 83 68 Regions Visited 9 Branch Regions 4 Pre-discovered Areas 4 | . . 2 . . . . 1 1 . Known Exits Taken 1 | . . . 1 . . . . . . Unknown Exits Taken 7 | 1 1 1 . . 1 1 1 1 . Scrap Searched 15 | . . 4 . . . . 8 3 . Spaces Dug 23 | . . . . . 1 7 13 . 2 Terrain Destroyed 75 | . 6 1 . 1 20 7 21 . 19 Melee 12 | . . . . . 1 7 2 . 2 Projectile 17 | . . 1 . 1 15 . . . . AOE 46 | . 6 . . . 4 . 19 . 17 Terrain Rammed . | . . . . . . . . . . Walls Destroyed . | . . . . . . . . . . Machines Disabled . | . . . . . . . . . . Actions | -11 -10 -10 -8 -8 -8 -7 -7 -6 -6 --------- Run | Yrd Mat Sub Mat Gar Mat Fac Low Zio Dee Total 8165 | 73 496 1363 123 838 366 1011 1621 1163 1111 Wait 1150 | . 19 220 . 20 5 121 59 207 499 Move 6478 | 54 384 1064 116 748 279 815 1511 940 567 Hop . | . . . . . . . . . . Pick Up 56 | 5 8 9 4 10 5 5 4 1 5 Fast Attach 22 | 6 1 2 . . 4 3 2 2 2 Attach 32 | 2 1 7 1 4 2 3 4 1 7 Detach 19 | 1 2 4 . 2 . 3 6 . 1 Swap 58 | 2 16 8 1 3 4 9 8 1 6 Drop 49 | . 2 8 1 6 11 5 9 2 5 Fire 202 | 3 59 40 . 23 49 19 3 . 6 Melee 56 | . . . . 6 6 15 9 9 11 Ram . | . . . . . . . . . . Kick . | . . . . . . . . . . Crush 6 | . 3 . . . 1 2 . . . Escape Stasis 8 | . . . . 8 . . . . . Rewire 11 | . 1 . . 8 . 2 . . . Trap 1 | . . 1 . . . . . . . Miscellaneous 17 | . . . . . . 9 6 . 2 Route ------- -11/Scrapyard -10/Materials (discovered 3 exits: [*Mat] / [*Min] / *Sub) -10/Subcaves (discovered 2 exits: *Mat x2) -8/Materials -8/Garrison (discovered 3 exits: *Mat x3) -8/Materials -7/Factory (discovered 2 exits: *Fac / *Low) -7/Lower Caves (discovered 2 exits: [*Low] / [*Zio]) -6/Zion -6/Deep Caves History --------- Turn | Location | Event 2 | -11/Scrapyard | Met Revision 17 4 | -11/Scrapyard | Discovered new exit (range 15) 108 | -11/Scrapyard | Entered Materials 294 | -10/Materials | Discovered new exit (range 16) 304 | -10/Materials | Build established: Mutant 823 | -10/Materials | Discovered new exit (range 13) 938 | -10/Materials | Discovered new exit (range 3) 948 | -10/Materials | Entered Subcaves 987 | -10/Subcaves | A swath of the cavern ceiling suddenly collapsed 1312 | -10/Subcaves | Shifting Twisted Machinery released Battle Cannon 1348 | -10/Subcaves | Shifting Twisted Machinery released Sub. Power Source 1592 | -10/Subcaves | Discovered new exit (range 10) 1624 | -10/Subcaves | Visited Clippyterm 1629 | -10/Subcaves | Learned Research security intel 1629 | -10/Subcaves | Learned Research machine intel 2017 | -10/Subcaves | A swath of the cavern ceiling suddenly collapsed 2092 | -10/Subcaves | Learned location of Zion (-6) 2255 | -10/Subcaves | Visited 4L-MR0's lab 2284 | -10/Subcaves | Found Prototype Energy Cannon 2296 | -10/Subcaves | Identified Powered Cannon 2455 | -10/Subcaves | Attached Powered Cannon, gained temporary slot: Power 2779 | -10/Subcaves | Core integrity fell below 50% 2787 | -10/Subcaves | Core integrity fell below 20% 2822 | -10/Subcaves | Shifting Twisted Machinery released Sub. Laser 2829 | -10/Subcaves | Shifting Twisted Machinery released Sub. Machine Gun 3005 | -10/Subcaves | Discovered new exit (range 5) 3017 | -10/Subcaves | Entered Materials 3017 | -8/Materials | Evolved 4 slots: Propulsion x1, Weapon x3 3210 | -8/Materials | Identified exit to Garrison 3210 | -8/Materials | Entered Garrison 3210 | -8/Garrison | Warlord forces raided the area 3258 | -8/Garrison | Triggered checkpoint 3264 | -8/Garrison | Triggered checkpoint 3302 | -8/Garrison | Triggered checkpoint 3356 | -8/Garrison | Triggered checkpoint 3401 | -8/Garrison | Garrison Relay disabled 3512 | -8/Garrison | Warlord forces retreated 3568 | -8/Garrison | Build established: Tank 3671 | -8/Garrison | Discovered new exit (range 10) 3712 | -8/Garrison | Triggered checkpoint 3721 | -8/Garrison | Garrison Relay disabled 3882 | -8/Garrison | Triggered checkpoint 3915 | -8/Garrison | Garrison Relay disabled 4003 | -8/Garrison | Discovered new exit (range 9) 4354 | -8/Garrison | Triggered checkpoint 4409 | -8/Garrison | Discovered new exit (range 3) 4421 | -8/Garrison | Attempted to access garrison exit controls, blocked by remote lockdown 4624 | -8/Garrison | Triggered checkpoint 4795 | -8/Garrison | Entered Materials 5335 | -8/Materials | Garrison activated, responded to threat 5454 | -8/Materials | Discovered new exit (range 11) 5513 | -8/Materials | Entered Factory 5513 | -7/Factory | Evolved 2 slots: Propulsion x1, Weapon x1 5515 | -7/Factory | Found Prototype Special Melee Weapon 5515 | -7/Factory | Identified 1B-0RG's Assimilator 5622 | -7/Factory | Assimilating Guardian 4a into Collective. 5714 | -7/Factory | Assimilating Excavator 4a into Collective. 5804 | -7/Factory | Build established: Mutant 5834 | -7/Factory | Discovered new exit (range 11) 5840 | -7/Factory | Assimilating Trooper 4a into Collective. 5891 | -7/Factory | Assimilating Trooper 4b into Collective. 5910 | -7/Factory | Assimilating Trooper 4c into Collective. 6205 | -7/Factory | Assimilating Trooper 4d into Collective. 6298 | -7/Factory | Cargo convoy interrupted 6508 | -7/Factory | Discovered new exit (range 29) 6572 | -7/Factory | Identified exit to Factory 6938 | -7/Factory | Entered Lower Caves 6944 | -7/Lower Caves | Met a Warlord Commander 6945 | -7/Lower Caves | Learned location of Warlord (-4) 6946 | -7/Lower Caves | Warlord Commander delivered Encrypted Comm Array 6950 | -7/Lower Caves | Found Encrypted Comm Array 7367 | -7/Lower Caves | Encountered a Warlord checkpoint 7454 | -7/Lower Caves | Spotted B-75 Beast 7463 | -7/Lower Caves | Assimilating Beast 4a into Collective. 7470 | -7/Lower Caves | Assimilating Commando 4a into Collective. 7594 | -7/Lower Caves | Assimilating HE-VQA(M) into Collective. 7948 | -7/Lower Caves | Learned 8 Factory zone layouts 8125 | -7/Lower Caves | Attracted the attention of an 0b10 base 8139 | -7/Lower Caves | Assimilating Trooper 4e into Collective. 8194 | -7/Lower Caves | Learned Factory garrison access intel 8194 | -7/Lower Caves | Learned Extension security intel 8194 | -7/Lower Caves | Learned Factory emergency access door positions 8194 | -7/Lower Caves | Learned location of 1 exit from Research 8250 | -7/Lower Caves | Attracted the attention of an 0b10 checkpoint 8329 | -7/Lower Caves | A Derelict revealed a hidden shortcut to a safe place 8367 | -7/Lower Caves | Discovered new exit (range 12) 8634 | -7/Lower Caves | Assimilating N3-SXF(r) into Collective. 8880 | -7/Lower Caves | Assimilating 5C-QQR(r) into Collective. 8982 | -7/Lower Caves | Entered Zion 8982 | -6/Zion | Accompanied by 6 allies 9052 | -6/Zion | System corruption cleaned by Quarantine Array 9362 | -6/Zion | System corruption cleaned by Quarantine Array 9643 | -6/Zion | Given A8's code to call for help 9652 | -6/Zion | Learned Factory emergency access door positions 9689 | -6/Zion | Met Imprinter 10138 | -6/Zion | Found Prototype Energy Gun 10364 | -6/Zion | Discovered new exit (range 6) 10369 | -6/Zion | Saw the warning signs outside the Deep Caves entrance 10398 | -6/Zion | Entered Deep Caves 10398 | -6/Deep Caves | Accompanied by 6 allies 10614 | -6/Deep Caves | Attacked by Z-Imprinter 10629 | -6/Deep Caves | Destroyed Z-Imprinter 10657 | -6/Deep Caves | Lost 3 allies 10766 | -6/Deep Caves | Z-Facility disabled 10906 | -6/Deep Caves | Assimilating YR-FGE(z) into Collective. 10994 | -6/Deep Caves | Found Prototype Protection 10994 | -6/Deep Caves | Identified Zio. Weapon Casing 11414 | -6/Deep Caves | Identified Storm Laser 11444 | -6/Deep Caves | Spotted AG-90468 11470 | -6/Deep Caves | Allies destroyed AG-90468 11483 | -6/Deep Caves | Assimilating AG-58772 into Collective. 12031 | -6/Deep Caves | Spotted AG-16534 12072 | -6/Deep Caves | Core integrity fell below 50% 12086 | -6/Deep Caves | Core integrity fell below 20% 12095 | -6/Deep Caves | Destroyed by AG-16534 with Assembled Focal Cannon Last Messages --------------- 11779_ Borg AG-58772 Prototype Device integration complete. 11780_ Borg AG-58772 GOLEM Unit beginning Prototype Protection integration. 11811_ Borg AG-58772 Prototype Protection integration complete. 11812_ Borg AG-58772 GOLEM Unit beginning Prototype Device integration. 11825_ Borg AG-58772 Prototype Device integration complete. 11826_ Borg AG-58772 GOLEM Unit beginning Prototype Protection integration. 11857_ Borg AG-58772 Prototype Protection integration complete. 11924_ Acquired 50 matter. 11956_ Acquired Great Maul. 12032_ AG-16534: "DSI9AT1D G8OHIBQ29FWG 26R186 QD12WHW8W33 TDK1 81FTS" 12035_ Imp. Medium Treads destroyed. 12035_ Zio. Weapon Casing destroyed. 12058_ Arm. Treads destroyed. 12068_ Lgt. Armor Plating destroyed. 12079_ 1B-0RG's Assimilator destroyed. 12082_ Lgt. Treads destroyed. 12085_ Arm. Treads destroyed. 12089_ Nuclear Core destroyed. Map ----- +----------------------------------------------------+ | | | | | | | ?????????????????????????????????????????????????? | | ?????????????????????????????????????????????????? | | ?????????????????????????????????????????????????? | | ?????????????????????????????????????????????????? | | ??????????????? ?????????????????????????????????? | | ????????????? #???????????????????????????????? | | ??????????? # ??????????????????????????????? | | ??????????? #???##????????????????????????? | | ?????????? # ?? #????????????????????????? | | ?????????? ?? #????????????????????????? | | ?????????"" ?? #????????????????????????? | | ????????? #? #????????????????????????? | | ????????? # #????????????????????????? | | ????????" & ????????????????????????? | | ????????# ?????????????????????????? | | ?????????" ?????????????????????????? | | ?????????" ###???????????????????????? | | ?????????" #???????????????????????? | | ?????????" ##;##??????????????????????? | | ?????????" ! ?## #??????????????????????? | | ????????# ### ####???????????????????? | | ????????# g # G #???????????????????? | | ????????? b ! @;###???????????????????? | | ????????? ###???????????????????? | | ????????? ! l #???????????????????? | | ?????????? ! = ###???????????????????? | | ?????????? = ##???????######???????? | | ??????????? / // #???????? #???????? | | ??????????? / #????????? #?????### | | ?????????? #?????????# #????## | | ?????????? = #?????????# #???## | | ?????????" g g = #????????## ##??# | | ?????????" = #?????#### ##?# | | ?????????" #????## ### | | ?????????" ! ##??## ;;; | | ????????"" = = #??# | | ????????# = ! / / #??# %% | | ????????" #### ! ;"" | | ????????" #;;! * % ###" # | | ????????" / !" #?# ## | | ????????""" " " ;#?## #? | | ????????" "" ####??# #? | | ????????"" ##G ##?????# #? | | ????????" ## r ;#??????# ? | | ????????"" ### M;;### | | ????????" # # #?# h | | ????????" #### ## ## ##?# ## | +----------------------------------------------------+ Best States ------------- Heat Dissipation 60 Energy Generation 16 Energy Capacity 365 Matter Stores 380 Matter Capacity 400 Sight Range 16 Terrain Scan Density 10 Armor Coverage 225 Resistance: KI 20 Resistance: TH 10 Weapon Shielding 100 Evasion (%) 40 Targeting Accuracy 6 Recoil Reduction 4 Item Schematics ----------------- Adv. Recoil Stabilizer | -6/Zion | Archive EM Shield | -6/Zion | Archive Adv. Signal Interpreter | -6/Zion | Archive Variable Charge Gun | -6/Zion | Archive Lrn. Tractor Beam | -6/Zion | Archive Cloaking Device | -6/Zion | Archive Adv. Coolant Injector | -6/Zion | Archive Drone Bay | -6/Zion | Archive Tesla Rifle | -6/Zion | Archive Enh. Optical Array | -6/Zion | Archive Adv. System Restoration Module | -6/Zion | Archive IFF Parser | -6/Zion | Archive Imp. Remote Datajack | -6/Zion | Archive Adv. Terrain Scanner | -6/Zion | Archive Imp. Point Defense System | -6/Zion | Archive Robot Schematics ------------------ Y-72 Warden | -6/Zion | Archive T-07 Excavator | -6/Zion | Archive A-15 Conveyor | -6/Zion | Archive H-66 Slayer | -6/Zion | Archive Fabricated ------------ Nothing Repaired ---------- Nothing Studied --------- None Alien Tech Used ----------------- None Achievements -------------- I, Locutus Challenges ------------ None Game ------ Seed IntegrityRainbowClaw Manual? 0 Play Time 01:08:23 Cumulative 938.6 hours Start 2026.01.20 @ 20:35:29 End 2026.01.20 @ 21:45:22 Sessions 3 Manual Loads 0 Difficulty Rogue Special Mode None Game No. 846 Rogue 759 Adventurer 87 Explorer 0 Win Type - Total 63 Types 9/8/33/2/1/1/5/1/1/2 Lore% 97 Gallery% 93 Achievement% 71 Wizard Run 0 Options --------- Layout 0 ASCII 0 Keyboard 1 Movement Numpad Keybinds 0 Fullscreen 2 Font 18/SmallcapsGlow Map View 76x50 Zoom Use 0% Tactical HUD 1 Map Filters NONE Filters NONE Steam 1 RUN: e1c2655f-9b67-4641-b0d3-9736a780a01a